bitfinex-derivatives/quotes_BTCF0:USTF0_20260106
["timestamp","ask_amount","ask_price","bid_price","bid_amount"]
[1767730811198,0.02716768,92637.0,92616.0,0.09724726]
[1767730811405,0.010802,92630.0,92616.0,0.09724726]
[1767730811804,0.010802,92628.0,92616.0,0.09724726]
[1767730812809,0.010802,92631.0,92616.0,0.09724726]
[1767730813105,0.010802,92631.0,92618.0,0.010803]
[1767730813407,0.010802,92634.0,92620.0,0.10194926]
[1767730814309,0.01769749,92637.0,92620.0,0.10194926]
[1767730814310,0.01769749,92637.0,92621.0,0.010803]
[1767730814601,0.01769749,92637.0,92620.0,0.10194926]
[1767730814602,0.11204921,92638.0,92623.0,0.010803]
[1767730814807,0.010801,92638.0,92623.0,0.010803]
[1767730815011,0.02808102,92638.0,92623.0,0.010803]
[1767730815904,0.02808102,92638.0,92620.0,0.11275226]
[1767730816304,0.010802,92636.0,92620.0,0.11275226]
[1767730817606,0.010802,92636.0,92622.0,0.010803]
[1767730817811,0.01728002,92638.0,92624.0,0.010803]
[1767730818003,0.00215893,92639.0,92620.0,0.10367338]
[1767730818212,0.00215893,92639.0,92624.0,0.010803]
[1767730818711,0.02016414,92639.0,92624.0,0.010803]
[1767730820110,0.09188,92647.0,92632.0,0.00165636]
[1767730820306,0.09188,92647.0,92616.0,0.010804]
[1767730820307,0.010799,92655.0,92639.0,0.09724726]
[1767730820509,0.010799,92654.0,92640.0,0.10194926]
[1767730820717,0.01812346,92655.0,92635.0,0.10804926]
[1767730820902,0.02047781,92656.0,92635.0,0.09724726]
[1767730821107,0.00967881,92655.0,92637.0,0.010801]
[1767730821308,0.01793713,92656.0,92640.0,0.10194926]
[1767730821603,0.00967881,92658.0,92641.0,0.010801]
[1767730822216,0.01799135,92658.0,92638.0,0.010801]
[1767730822514,0.00967881,92659.0,92642.0,0.00037533]
[1767730822818,0.00967881,92659.0,92641.0,0.09724726]
[1767730823006,0.02734773,92659.0,92641.0,0.09724726]
[1767730823313,0.0108,92647.0,92634.0,0.09188]
[1767730823520,0.0915694,92650.0,92635.0,0.010802]
[1767730824013,0.0108,92653.0,92635.0,0.010802]
[1767730824207,0.0915694,92655.0,92635.0,0.010802]
[1767730824407,0.010799,92654.0,92635.0,0.010802]
[1767730824611,0.0915694,92655.0,92638.0,0.010801]
[1767730824806,0.0915694,92655.0,92635.0,0.010802]
[1767730824807,0.010799,92654.0,92635.0,0.010802]
[1767730825004,0.1023684,92654.0,92634.0,0.09188]
[1767730825212,0.0108,92650.0,92634.0,0.09188]
[1767730825412,0.0108,92648.0,92634.0,0.09188]
[1767730827118,0.0108,92651.0,92634.0,0.09188]
[1767730827411,0.0108,92652.0,92636.0,5.878e-05]
[1767730827816,0.0108,92652.0,92635.0,0.09724726]
[1767730828913,0.02047881,92652.0,92635.0,0.010801]
[1767730829422,0.0108,92652.0,92635.0,0.010801]
[1767730830520,0.0915694,92654.0,92637.0,0.010801]
[1767730830718,0.0108,92653.0,92637.0,0.010801]
[1767730830912,0.0108,92651.0,92634.0,0.19992926]
[1767730831915,0.0108,92649.0,92634.0,0.19992926]
[1767730832227,0.00966733,92634.0,92617.0,0.09188]
[1767730832425,0.00966733,92634.0,92617.0,0.102684]
[1767730832426,0.010802,92633.0,92617.0,0.102684]
[1767730832624,0.010802,92633.0,92618.0,5.86e-05]
[1767730832925,0.010802,92631.0,92618.0,5.86e-05]
[1767730833127,0.010802,92634.0,92618.0,5.86e-05]
[1767730833628,0.010802,92634.0,92618.0,0.0108616]
[1767730834026,0.010802,92632.0,92618.0,5.86e-05]
[1767730834429,0.10194926,92630.0,92611.0,0.09266015]
[1767730834616,0.010802,92629.0,92614.0,0.010804]
[1767730834818,0.010802,92629.0,92611.0,0.10346415]
[1767730835018,0.010803,92627.0,92611.0,0.10346415]
[1767730835220,0.010804,92618.0,92609.0,0.00215963]
[1767730835428,0.00966733,92627.0,92609.0,0.00215963]
[1767730835630,0.00966733,92626.0,92609.0,0.00215963]
[1767730836520,0.010803,92625.0,92609.0,0.00215963]
[1767730837219,0.09027052,92627.0,92610.0,0.010804]
[1767730837432,0.010802,92628.0,92610.0,0.010804]
[1767730837626,0.010803,92626.0,92610.0,0.010804]
[1767730837929,0.010803,92626.0,92609.0,0.00215963]
[1767730838131,0.09993785,92617.0,92595.0,0.09266015]
[1767730838432,0.010805,92609.0,92593.0,0.09188]
[1767730838619,0.11275426,92610.0,92593.0,0.010806]
[1767730839021,0.11275426,92610.0,92593.0,0.10346615]
[1767730839318,0.010805,92608.0,92593.0,0.09266015]
[1767730839823,0.11275426,92610.0,92593.0,0.09266015]
[1767730840330,0.010805,92610.0,92593.0,0.10346615]
[1767730840527,0.11275426,92610.0,92593.0,0.10346615]
[1767730841225,0.00966733,92614.0,92593.0,0.09266015]
[1767730841420,0.010804,92614.0,92596.0,0.010806]
[1767730841625,0.010804,92612.0,92596.0,0.010806]
[1767730842919,0.10107452,92615.0,92596.0,0.010806]
[1767730843722,0.10107452,92615.0,92593.0,0.09266015]
[1767730843723,0.09027052,92615.0,92593.0,0.09266015]
[1767730843928,0.05393,92772.0,92606.0,0.10346515]
[1767730843929,0.09188,92622.0,92606.0,0.10346515]
[1767730844138,0.010803,92625.0,92609.0,0.09266015]
[1767730844431,0.010802,92628.0,92610.0,0.19460941]
[1767730844638,0.0108,92645.0,92602.0,0.09188]
[1767730844639,0.09027052,92641.0,92619.0,0.09266015]
[1767730844826,0.12392422,92670.0,92626.0,0.10346315]
[1767730844827,0.09188,92642.0,92626.0,0.10346315]
[1767730845032,0.0108,92645.0,92628.0,0.010802]
[1767730845033,0.10268,92645.0,92628.0,0.010802]
[1767730845229,0.10268,92645.0,92626.0,0.09266015]
[1767730845537,0.010801,92643.0,92626.0,0.09266015]
[1767730846135,0.010801,92643.0,92627.0,0.010802]
[1767730846328,0.09188,92645.0,92629.0,0.10346215]
[1767730847339,0.09188,92645.0,92635.0,0.010802]
[1767730847640,0.09188,92648.0,92635.0,0.010802]
[1767730848528,0.09188,92648.0,92632.0,0.010802]
[1767730850336,0.09188,92648.0,92634.0,0.010802]
[1767730851635,0.09993785,92652.0,92634.0,0.010802]
[1767730851939,0.09188,92651.0,92634.0,0.010802]
[1767730852138,0.09188,92651.0,92627.0,0.09188]
[1767730852139,0.00966733,92656.0,92640.0,0.11275026]
[1767730852339,0.00966733,92655.0,92640.0,0.010801]
[1767730852537,0.00966733,92654.0,92637.0,0.010801]
[1767730852749,0.00966733,92654.0,92639.0,0.010801]
[1767730853240,0.102679,92656.0,92639.0,0.010801]
[1767730853637,0.11234633,92656.0,92639.0,0.010801]
[1767730853843,0.00966733,92655.0,92639.0,0.010801]
[1767730854635,0.00966733,92655.0,92635.0,0.00015671]
[1767730854636,0.09188,92656.0,92641.0,0.010801]
[1767730855238,0.10154733,92656.0,92641.0,0.010801]
[1767730855437,0.10154733,92656.0,92638.0,0.010801]
[1767730855639,0.00966733,92651.0,92631.0,0.09283303]
[1767730855841,0.00966733,92651.0,92632.0,0.00017288]
[1767730856035,0.00966733,92651.0,92635.0,0.010801]
[1767730856343,0.12241659,92650.0,92632.0,0.01097488]
[1767730856534,0.00966733,92649.0,92629.0,0.00017288]
[1767730856737,0.09027052,92646.0,92627.0,0.09188]
[1767730856950,0.00966733,92645.0,92627.0,0.09188]
[1767730857137,0.00966733,92645.0,92627.0,0.09205288]
[1767730857337,0.09027052,92646.0,92630.0,0.10194926]
[1767730857537,0.0108,92648.0,92631.0,0.010802]
[1767730858148,0.00966733,92649.0,92633.0,0.010802]
[1767730858649,0.02046733,92649.0,92630.0,0.11275126]
[1767730858946,0.0108,92647.0,92630.0,0.11275126]
[1767730859248,0.09027052,92635.0,92621.0,0.010803]
[1767730860247,0.010801,92641.0,92625.0,0.010803]
[1767730860437,0.18215052,92643.0,92630.0,0.010802]
[1767730860639,0.010801,92639.0,92623.0,0.010803]
[1767730860839,0.10107152,92642.0,92624.0,0.010803]
[1767730861240,0.00966733,92641.0,92624.0,0.010803]
[1767730861840,0.00966733,92641.0,92626.0,0.010803]
[1767730863239,0.00913377,92638.0,92618.0,0.09266015]
[1767730863547,0.00916188,92637.0,92622.0,0.010803]
[1767730863846,0.00916188,92636.0,92622.0,0.010803]
[1767730864045,0.00916188,92636.0,92616.0,0.00028189]
[1767730864241,0.00916188,92636.0,92617.0,0.09276122]
[1767730864449,0.00916188,92640.0,92631.0,0.010802]
[1767730864642,0.00916188,92640.0,92628.0,0.010802]
[1767730868550,0.00916188,92640.0,92627.0,0.010802]
[1767730870351,0.01996288,92639.0,92622.0,0.010803]
[1767730870544,0.01996288,92639.0,92623.0,0.010803]
[1767730872055,0.00916188,92639.0,92620.0,0.09247933]
[1767730872249,0.00916188,92639.0,92626.0,0.010803]
[1767730872947,0.00916188,92639.0,92625.0,0.010803]
[1767730873153,0.00916188,92639.0,92622.0,0.010803]
[1767730873546,0.00916188,92637.0,92616.0,0.00056554]
[1767730873748,0.00916188,92621.0,92610.0,0.010804]
[1767730873947,0.0966228,92628.0,92612.0,0.010804]
[1767730874155,0.01996388,92629.0,92612.0,0.010804]
[1767730874655,0.01996388,92629.0,92610.0,0.09305676]
[1767730875554,0.00916188,92629.0,92610.0,0.09305676]
[1767730877252,0.00916188,92629.0,92613.0,0.010804]
[1767730877757,0.00916188,92642.0,92621.0,0.00034523]
[1767730878051,0.09188,92645.0,92626.0,0.09247933]
[1767730878251,0.010799,92655.0,92639.0,0.00034523]
[1767730878552,0.10104188,92658.0,92639.0,0.09247933]
[1767730878749,0.010799,92654.0,92635.0,0.010801]
[1767730878953,0.010799,92654.0,92635.0,0.01114623]
[1767730879555,0.09188,92658.0,92639.0,0.00034523]
[1767730879854,0.102679,92658.0,92641.0,0.010801]
[1767730880555,0.01766892,92659.0,92645.0,0.0108]
[1767730880744,0.09188,92659.0,92645.0,0.0108]
[1767730881057,0.09188,92659.0,92639.0,0.09247933]
[1767730881058,0.09188,92659.0,92644.0,0.0108]
[1767730881456,0.10981176,92659.0,92644.0,0.0108]
[1767730882157,0.01793176,92659.0,92644.0,0.0108]
[1767730882358,0.09188,92661.0,92644.0,0.0108]
[1767730883145,0.11045511,92661.0,92644.0,0.0108]
[1767730883751,0.11045511,92661.0,92642.0,0.00062501]
[1767730883964,0.11045511,92661.0,92643.0,0.010801]
[1767730884259,0.11045511,92661.0,92630.0,0.09188]
[1767730884260,0.00916188,92659.0,92637.0,0.00059944]
[1767730884460,0.0108,92647.0,92631.0,0.09307877]
[1767730884659,0.0108,92645.0,92630.0,0.09188]
[1767730884852,0.01996288,92643.0,92625.0,0.09247933]
[1767730885159,0.00916188,92643.0,92627.0,0.09188]
[1767730885554,0.01996188,92646.0,92627.0,0.09188]
[1767730886158,0.01996188,92646.0,92628.0,0.010802]
[1767730887862,0.0108,92649.0,92631.0,0.010802]
[1767730888364,0.01996188,92649.0,92631.0,0.010802]
[1767730889765,0.00916188,92649.0,92633.0,0.010802]
[1767730889954,0.09188,92651.0,92637.0,0.010801]
[1767730891152,0.00916188,92657.0,92639.0,0.010801]
[1767730891353,0.09188,92656.0,92639.0,0.010801]
[1767730891655,0.09188,92656.0,92640.0,0.09842313]
[1767730891855,0.09188,92656.0,92646.0,0.0108]
[1767730892055,0.09188,92656.0,92643.0,0.010801]
[1767730892259,0.09188,92656.0,92645.0,0.0108]
[1767730892463,0.09188,92656.0,92647.0,0.0108]
[1767730893268,0.09188,92656.0,92644.0,0.0108]
[1767730893563,0.09188,92656.0,92646.0,0.0108]
[1767730896959,0.00969875,92660.0,92647.0,0.0108]
[1767730898054,0.10973314,92661.0,92647.0,0.0108]
[1767730898462,0.10973314,92661.0,92654.0,0.010799]
[1767730898763,0.01789314,92661.0,92644.0,0.09807594]
[1767730898970,0.09399823,92669.0,92652.0,0.09807594]
[1767730899263,0.09399823,92669.0,92660.0,0.010799]
[1767730899457,0.111926,92669.0,92657.0,0.010799]
[1767730899657,0.020086,92669.0,92657.0,0.010799]
[1767730899961,0.00969875,92668.0,92656.0,0.010799]
[1767730900153,0.020086,92669.0,92652.0,0.09807594]
[1767730900359,0.02978475,92669.0,92647.0,0.18991594]
[1767730900562,0.02978475,92669.0,92648.0,0.09807594]
[1767730900765,0.020086,92669.0,92656.0,0.010799]
[1767730902267,0.020086,92669.0,92653.0,0.10887494]
[1767730902956,0.020086,92669.0,92653.0,0.09807594]
[1767730903265,0.020086,92669.0,92656.0,0.010799]
[1767730903458,0.020086,92669.0,92653.0,0.10887494]
[1767730903658,0.020086,92669.0,92655.0,0.010799]
[1767730903863,0.020086,92669.0,92655.0,0.10887494]
[1767730904363,0.020086,92669.0,92655.0,0.09807594]
[1767730904560,0.18647569,92679.0,92657.0,0.09807594]
[1767730904760,0.09184,92683.0,92665.0,0.09807594]
[1767730904970,0.02797955,92683.0,92660.0,0.09807594]
[1767730905466,0.00969875,92682.0,92666.0,0.010798]
[1767730905965,0.09463569,92682.0,92660.0,0.09807594]
[1767730906265,0.00969875,92677.0,92660.0,0.010799]
[1767730906471,0.010797,92676.0,92658.0,0.18991594]
[1767730907167,0.02049575,92676.0,92658.0,0.18991594]
[1767730907365,0.02049575,92674.0,92658.0,0.09184]
[1767730907667,0.010797,92672.0,92658.0,0.15262335]
[1767730907864,0.00969875,92663.0,92647.0,0.0108]
[1767730908063,0.00969875,92673.0,92649.0,0.09807594]
[1767730908262,0.00969875,92669.0,92657.0,0.010799]
[1767730908566,0.10433444,92676.0,92659.0,0.010799]
[1767730909362,0.00969875,92680.0,92661.0,0.010798]
[1767730910365,0.010796,92679.0,92660.0,0.010799]
[1767730910767,0.00969875,92678.0,92662.0,0.010798]
[1767730910964,0.00969875,92678.0,92659.0,0.09807594]
[1767730910965,0.00969875,92678.0,92659.0,0.10887494]
[1767730911160,0.010797,92677.0,92659.0,0.09807594]
[1767730911462,0.02049575,92677.0,92658.0,0.010799]
[1767730911767,0.00969875,92676.0,92658.0,0.010799]
[1767730913269,0.00969875,92676.0,92660.0,0.010799]
[1767730913470,0.00969875,92676.0,92657.0,0.010799]
[1767730914866,0.00969875,92676.0,92659.0,0.010799]
[1767730915263,0.02049575,92675.0,92656.0,0.010799]
[1767730915462,0.02049575,92673.0,92653.0,0.10887494]
[1767730915671,0.00969875,92668.0,92651.0,0.0108]
[1767730915869,0.00969875,92664.0,92652.0,0.09184]
[1767730916368,0.02049675,92668.0,92652.0,0.09184]
[1767730916871,0.00969875,92658.0,92647.0,0.09184]
[1767730917068,0.10543469,92661.0,92647.0,0.09184]
[1767730918162,0.010799,92657.0,92647.0,0.09184]
[1767730918567,0.01997217,92657.0,92641.0,0.010801]
[1767730918775,0.00917317,92653.0,92639.0,0.09399893]
[1767730919072,0.010799,92659.0,92639.0,0.09399893]
[1767730919271,0.01997217,92659.0,92639.0,0.09399893]
[1767730919675,0.00917317,92658.0,92639.0,0.18852131]
[1767730919978,0.010799,92659.0,92640.0,0.09452238]
[1767730920172,0.010799,92657.0,92640.0,0.09452238]
[1767730920563,0.00917317,92659.0,92643.0,0.010801]
[1767730921268,0.01997217,92659.0,92640.0,0.10532338]
[1767730921769,0.00926816,92663.0,92640.0,0.09452238]
[1767730922369,0.09383005,92666.0,92640.0,0.09452238]
[1767730922574,0.09184,92666.0,92643.0,0.09130729]
[1767730922874,0.10110816,92666.0,92643.0,0.09130729]
[1767730923074,0.00926816,92665.0,92643.0,0.09130729]
[1767730923969,0.00926816,92664.0,92643.0,0.09130729]
[1767730924268,0.010798,92670.0,92650.0,0.10210729]
[1767730924473,0.09184,92669.0,92650.0,0.10210729]
[1767730924674,0.00926816,92669.0,92650.0,0.10210729]
[1767730924873,0.09184,92668.0,92652.0,0.0108]
[1767730925671,0.00926816,92673.0,92653.0,8.055e-05]
[1767730925872,0.010797,92672.0,92657.0,0.09138784]
[1767730926071,0.10309821,92665.0,92646.0,0.0108]
[1767730926378,0.02006716,92659.0,92645.0,0.09184]
[1767730927480,0.010799,92656.0,92639.0,0.09346622]
[1767730927675,0.010799,92656.0,92639.0,0.00215893]
[1767730928075,0.10462905,92658.0,92639.0,0.00215893]
[1767730928463,0.010799,92656.0,92639.0,0.01295993]
[1767730930866,0.0108,92652.0,92639.0,0.00215893]
[1767730931071,0.02006816,92646.0,92639.0,9.3e-07]
[1767730931977,0.0108,92646.0,92639.0,9.3e-07]
[1767730932478,0.09383005,92648.0,92639.0,9.3e-07]
[1767730932479,0.10309821,92648.0,92639.0,9.3e-07]
[1767730932875,0.02006816,92647.0,92639.0,9.3e-07]
[1767730933075,0.09383005,92642.0,92639.0,9.3e-07]
[1767730933475,0.02006916,92643.0,92639.0,9.3e-07]
[1767730933676,0.10309821,92642.0,92639.0,9.3e-07]
[1767730934988,0.010802,92636.0,92626.0,0.09184]
[1767730935283,0.02006916,92639.0,92626.0,0.09184]
[1767730935979,0.00926816,92639.0,92626.0,0.09184]
[1767730936773,0.010801,92638.0,92626.0,0.09184]
[1767730937478,0.010802,92636.0,92626.0,0.09184]
[1767730937678,0.00926816,92632.0,92619.0,0.010803]
[1767730937982,0.10187821,92630.0,92619.0,0.010803]
[1767730938368,0.10187821,92630.0,92621.0,0.010803]
[1767730938776,0.00926816,92637.0,92621.0,0.010803]
[1767730938976,0.00926816,92637.0,92623.0,0.010803]
[1767730939578,0.00926816,92637.0,92616.0,0.09184]
[1767730939579,0.00926816,92636.0,92620.0,0.010803]
[1767730940275,0.00926816,92636.0,92622.0,0.010803]
[1767730940481,0.00926816,92636.0,92621.0,0.010803]
[1767730940684,0.00926816,92656.0,92626.0,0.09130729]
[1767730940981,0.10187821,92640.0,92622.0,0.010803]
[1767730941279,0.10187821,92640.0,92624.0,0.010803]
[1767730941978,0.10187821,92640.0,92621.0,0.09130729]
[1767730941979,0.10187821,92640.0,92626.0,0.010803]
[1767730942291,0.00926816,92639.0,92623.0,0.010803]
[1767730942476,0.10187821,92640.0,92626.0,0.010803]
[1767730942785,0.10187821,92640.0,92628.0,0.010802]
[1767730942985,0.10187821,92640.0,92625.0,0.010803]
[1767730943185,0.10187821,92640.0,92627.0,0.010802]
[1767730943982,0.10187821,92640.0,92624.0,0.010803]
[1767730944186,0.10187821,92640.0,92623.0,0.010803]
[1767730944385,0.10187821,92640.0,92625.0,0.010803]
[1767730944786,0.00926816,92636.0,92625.0,0.010803]
[1767730944990,0.10187821,92640.0,92580.0,0.16148036]
[1767730944991,0.00926816,92626.0,92614.0,0.1203]
[1767730945290,0.00926816,92625.0,92614.0,0.1203]
[1767730945786,0.09383005,92614.0,92598.0,0.09184]
[1767730947390,0.11268221,92610.0,92598.0,0.09184]
[1767730947881,0.10187821,92610.0,92598.0,0.09184]
[1767730948672,0.10309821,92612.0,92598.0,0.09184]
[1767730951474,0.09084622,92621.0,92600.0,0.00921471]
[1767730951679,0.010803,92625.0,92610.0,0.10187821]
[1767730951986,0.09188,92627.0,92610.0,0.11109292]
[1767730952187,0.09188,92627.0,92611.0,0.010804]
[1767730952790,0.09188,92627.0,92609.0,0.09583437]
[1767730953385,0.102683,92627.0,92610.0,0.010804]
[1767730954180,0.102683,92627.0,92607.0,0.010805]
[1767730954488,0.1122593,92627.0,92607.0,0.010805]
[1767730955281,0.1122593,92627.0,92604.0,0.010805]
[1767730955282,0.10187821,92620.0,92604.0,0.010805]
[1767730957287,0.10187821,92620.0,92606.0,0.010805]
[1767730957688,0.10187821,92620.0,92602.0,0.0096196]
[1767730958781,0.10042252,92623.0,92606.0,0.010805]
[1767730958982,0.10042252,92613.0,92603.0,0.010805]
[1767730959186,0.0095763,92617.0,92603.0,0.010805]
[1767730959394,0.0095763,92616.0,92603.0,0.010805]
[1767730959690,0.0095763,92613.0,92599.0,0.010806]
[1767730959897,0.0095763,92613.0,92600.0,0.09188]
[1767730960090,0.0095763,92613.0,92601.0,0.010806]
[1767730960889,0.0095763,92609.0,92600.0,0.09188]
[1767730961089,0.09084622,92609.0,92600.0,0.09188]
[1767730961398,0.10042252,92615.0,92600.0,0.09188]
[1767730961595,0.0095763,92614.0,92600.0,0.09188]
[1767730962494,0.0095763,92614.0,92601.0,0.010805]
[1767730962687,0.11145451,92620.0,92604.0,0.010805]
[1767730962891,0.0095763,92623.0,92601.0,0.00966164]
[1767730963091,0.09188,92622.0,92604.0,0.010805]
[1767730963394,0.1014563,92622.0,92606.0,0.010805]
[1767730963796,0.0095763,92621.0,92603.0,0.010805]
[1767730964099,0.0095763,92617.0,92600.0,0.09188]
[1767730964494,0.0095763,92616.0,92600.0,0.09188]
[1767730964703,0.10042252,92606.0,92594.0,0.09188]
[1767730965006,0.10042252,92606.0,92580.0,0.10187821]
[1767730965007,0.010807,92592.0,92579.0,0.00216033]
[1767730965200,0.10042252,92597.0,92579.0,0.01296833]
[1767730965591,0.10042252,92597.0,92581.0,0.010808]
[1767730965997,0.010806,92596.0,92579.0,0.00216033]
[1767730966190,0.10042252,92594.0,92579.0,0.00216033]
[1767730966899,0.09084622,92594.0,92579.0,0.00216033]
[1767730967398,0.09084622,92594.0,92579.0,0.01296833]
[1767730967598,0.09084622,92594.0,92581.0,0.010808]
[1767730968596,0.01838699,92597.0,92584.0,0.010808]
[1767730968898,0.0095763,92599.0,92584.0,0.010808]
[1767730969494,0.0095763,92599.0,92580.0,0.10187821]
[1767730969495,0.0095763,92597.0,92580.0,0.010808]
[1767730969701,0.10042252,92596.0,92580.0,0.010808]
[1767730969895,0.10187821,92590.0,92579.0,0.00216033]
[1767730970093,0.11145451,92590.0,92579.0,0.00216033]
[1767730970699,0.10187821,92590.0,92579.0,0.00216033]
[1767730971088,0.0095763,92589.0,92579.0,0.00216033]
[1767730971288,0.10042252,92587.0,92579.0,0.00216033]
[1767730971500,0.010807,92592.0,92579.0,0.00216033]
[1767730971698,0.10187821,92590.0,92579.0,0.00216033]
[1767730971891,0.11122852,92594.0,92579.0,0.00216033]
[1767730972291,0.0095763,92585.0,92579.0,0.00216033]
[1767730972491,0.09084622,92586.0,92579.0,0.00216033]
[1767730972694,0.11145451,92590.0,92579.0,0.00216033]
[1767730973892,0.10187821,92590.0,92579.0,0.00216033]
[1767730974094,0.0095763,92589.0,92579.0,0.00216033]
[1767730974292,0.10042252,92593.0,92579.0,0.00216033]
[1767730974489,0.10187821,92590.0,92579.0,0.00216033]
[1767730975091,0.10042252,92593.0,92579.0,0.00216033]
[1767730975594,0.10042252,92592.0,92579.0,0.00216033]
[1767730975801,0.10042252,92591.0,92579.0,0.00216033]
[1767730976407,0.10042252,92594.0,92579.0,0.00216033]
[1767730977195,0.10042252,92593.0,92579.0,0.00216033]
[1767730979106,0.09585904,92597.0,92580.0,0.10187821]
[1767730979297,0.10507635,92597.0,92579.0,0.00216033]
[1767730979498,0.10507635,92596.0,92579.0,0.01296833]
[1767730979804,0.10507635,92595.0,92579.0,0.01296833]
[1767730980507,0.10507635,92595.0,92579.0,0.00216033]
[1767730981308,0.00958177,92593.0,92579.0,0.00216033]
[1767730981613,0.00958177,92592.0,92579.0,0.00216033]
[1767730983903,0.10205742,92592.0,92579.0,0.00216033]
[1767730984710,0.00958177,92591.0,92579.0,0.00216033]
[1767730986212,4.2e-07,92592.0,92589.0,0.010807]
[1767730986401,0.102725,92608.0,92591.0,0.010807]
[1767730986604,0.09192,92607.0,92585.0,0.09537924]
[1767730986804,0.01878813,92613.0,92585.0,0.09537924]
[1767730987004,0.010804,92611.0,92583.0,0.10439696]
[1767730987204,0.09192,92610.0,92593.0,0.010806]
[1767730987403,0.010805,92609.0,92590.0,0.010807]
[1767730987806,0.09192,92610.0,92594.0,0.010806]
[1767730988005,0.09192,92610.0,92580.0,0.010808]
[1767730988006,0.11003712,92613.0,92596.0,0.010806]
[1767730988205,0.00958177,92612.0,92596.0,0.010806]
[1767730988509,0.00958177,92611.0,92590.0,0.10439696]
[1767730988810,0.00958177,92611.0,92590.0,0.19631696]
[1767730989012,0.00958177,92605.0,92590.0,0.09192]
[1767730989414,0.00958177,92605.0,92591.0,0.010807]
[1767730990314,0.00958177,92605.0,92590.0,0.102727]
[1767730990512,0.09247565,92606.0,92590.0,0.102727]
[1767730990715,0.09247565,92606.0,92592.0,0.010807]
[1767730991419,0.09247565,92606.0,92590.0,0.09192]
[1767730991617,0.00958177,92605.0,92590.0,0.09192]
[1767730994710,0.00958177,92608.0,92590.0,0.09192]
[1767730995715,0.00958177,92608.0,92593.0,0.010806]
[1767730995920,0.11003712,92613.0,92598.0,0.00901772]
[1767730996216,0.01811712,92613.0,92598.0,0.010806]
[1767730996420,0.00958177,92613.0,92598.0,0.010806]
[1767730996621,0.00958177,92613.0,92600.0,0.010806]
[1767730996915,0.01861249,92613.0,92604.0,0.10439696]
[1767730997216,0.09192,92621.0,92606.0,0.010805]
[1767730997719,0.01874556,92621.0,92607.0,0.10439696]
[1767730997912,0.00958177,92627.0,92611.0,0.010804]
[1767730998709,0.02763663,92627.0,92611.0,0.010804]
[1767730998914,0.01805486,92627.0,92611.0,0.010804]
[1767730999118,0.10205742,92623.0,92601.0,0.10439696]
[1767730999323,0.00958177,92623.0,92609.0,0.010805]
[1767730999616,0.01877003,92629.0,92611.0,0.010804]
[1767730999617,0.00958177,92626.0,92611.0,0.010804]
[1767731000610,0.00958177,92626.0,92608.0,0.010805]
[1767731001320,0.02038477,92623.0,92605.0,0.09537924]
[1767731003514,0.00958177,92623.0,92605.0,0.09537924]
[1767731003712,0.09247565,92626.0,92611.0,0.010804]
[1767731003912,0.0181565,92629.0,92614.0,0.10439696]
[1767731004115,0.010802,92630.0,92614.0,0.10439696]
[1767731004416,0.010802,92630.0,92613.0,0.010804]
[1767731004417,0.02038377,92630.0,92613.0,0.010804]
[1767731004624,0.00958177,92629.0,92610.0,0.01982172]
[1767731004811,0.09192,92631.0,92610.0,0.010804]
[1767731004812,0.02038377,92628.0,92610.0,0.010804]
[1767731005224,0.00958177,92628.0,92612.0,0.010804]
[1767731005424,0.00958177,92628.0,92614.0,0.010804]
[1767731005924,0.00958177,92628.0,92611.0,0.010804]
[1767731006126,0.01862928,92631.0,92618.0,0.00901772]
[1767731006318,0.00958177,92642.0,92625.0,0.010803]
[1767731006519,0.09188,92643.0,92625.0,0.10439696]
[1767731006825,0.02074339,92639.0,92626.0,0.00901772]
[1767731007025,0.10205742,92647.0,92632.0,0.010802]
[1767731007328,0.01857139,92647.0,92629.0,0.010802]
[1767731007516,0.02038177,92650.0,92629.0,0.01981972]
[1767731007715,0.02038177,92650.0,92631.0,0.010802]
[1767731008125,0.3187,92671.0,92623.0,0.09188]
[1767731008126,0.10205742,92664.0,92641.0,0.10439696]
[1767731008320,0.09188,92663.0,92644.0,0.10439696]
[1767731008820,0.09188,92663.0,92647.0,0.0108]
[1767731009013,0.01886172,92664.0,92648.0,0.10439696]
[1767731009212,0.10146177,92668.0,92648.0,0.09537924]
[1767731009418,0.00958177,92667.0,92648.0,0.09537924]
[1767731010033,0.010799,92659.0,92648.0,0.09537924]
[1767731010323,0.010799,92659.0,92635.0,0.09188]
[1767731010324,0.010799,92656.0,92642.0,0.09537924]
[1767731010526,0.00958177,92661.0,92639.0,0.00901772]
[1767731010725,0.010799,92655.0,92639.0,0.00901772]
[1767731010921,0.00958177,92652.0,92631.0,0.010802]
[1767731011121,0.0108,92651.0,92632.0,0.09188]
[1767731011428,0.0108,92649.0,92633.0,0.09188]
[1767731011926,0.0108,92647.0,92633.0,0.09188]
[1767731012325,0.0108,92647.0,92630.0,0.10439696]
[1767731012326,0.0108,92651.0,92630.0,0.10439696]
[1767731012523,0.0108,92651.0,92631.0,0.09188]
[1767731012721,0.10813558,92652.0,92631.0,0.09188]
[1767731012920,0.0108,92648.0,92631.0,0.09188]
[1767731013426,0.102679,92658.0,92631.0,0.09188]
[1767731013427,0.00971265,92649.0,92631.0,0.09188]
[1767731013617,0.0108,92646.0,92631.0,0.09188]
[1767731013824,0.00971265,92649.0,92630.0,0.09537924]
[1767731014023,0.0108,92645.0,92630.0,0.09537924]
[1767731014224,0.02051265,92649.0,92631.0,0.09188]
[1767731014526,0.09188,92658.0,92633.0,0.00916856]
[1767731014731,0.09188,92658.0,92639.0,0.10494539]
[1767731014732,0.010799,92655.0,92639.0,0.10494539]
[1767731016631,0.0108,92650.0,92634.0,0.10494539]
[1767731017021,0.0108,92650.0,92635.0,0.00916856]
[1767731017224,0.0108,92650.0,92635.0,0.10494539]
[1767731017420,0.0108,92646.0,92628.0,0.010802]
[1767731017729,0.00971265,92649.0,92627.0,0.09577683]
[1767731017730,0.0108,92645.0,92629.0,0.09188]
[1767731018034,0.0108,92645.0,92629.0,0.102682]
[1767731018220,0.0108,92645.0,92629.0,0.09188]
[1767731018425,0.00971265,92649.0,92629.0,0.09188]
[1767731018628,0.0108,92647.0,92629.0,0.102682]
[1767731019129,0.0108,92647.0,92629.0,0.19845883]
[1767731019630,0.00971265,92648.0,92629.0,0.09188]
[1767731019934,0.0108,92647.0,92631.0,0.010802]
[1767731020529,0.00971265,92648.0,92632.0,0.010802]
[1767731020731,0.09855381,92649.0,92629.0,0.102682]